fUST/lending_fUST_20250824
["ID","MTS","AMOUNT","RATE_DAILY","PERIOD"]
[381057671,1755978666398,-260.361325,0.00054794,15]
[381057672,1755978666408,-260.361325,0.00054794,15]
[381057673,1755978666417,-260.361319,0.00054794,15]
[381057674,1755978666427,-480.0,0.00054794,120]
[381057675,1755978666436,-3554.87,0.00054794,120]
[381057676,1755978666449,-686.33,0.00054794,120]
[381057677,1755978666459,-463.54438353,0.00054794,120]
[381057678,1755978666472,-1072.44,0.00054794,120]
[381057679,1755978666494,-158.032284,0.00054794,120]
[381057680,1755978666518,-158.032284,0.00054794,120]
[381057681,1755978666540,-24680.58,0.00054794,120]
[381057682,1755978666564,-480.0,0.00054794,120]
[381057683,1755978666592,-158.032284,0.00054794,120]
[381057684,1755978666617,-2903.24,0.00054794,30]
[381057685,1755978666642,-158.032284,0.00054794,120]
[381057686,1755978666665,-1303.76,0.00054794,120]
[381057687,1755978666686,-480.0,0.00054794,120]
[381057688,1755978666706,-158.032284,0.00054794,120]
[381057689,1755978666729,-158.032284,0.00054794,120]
[381057690,1755978666751,-199.77344096,0.00054794,120]
[381057691,1755978666775,-480.0,0.00054794,120]
[381057692,1755978666797,-1000.0,0.00054794,120]
[381057693,1755978666806,-480.0,0.00054794,120]
[381057694,1755978666815,-480.0,0.00054794,120]
[381057695,1755978666825,-480.0,0.00054794,120]
[381057696,1755978666835,-151.0,0.00054794,120]
[381057697,1755978666844,-151.0,0.00054794,120]
[381057698,1755978666853,-824.16,0.00054794,120]
[381057699,1755978666862,-480.0,0.00054794,120]
[381057700,1755978666872,-151.0,0.00054794,120]
[381057701,1755978666883,-269.16362,0.00054794,120]
[381057702,1755978666893,-480.0,0.00054794,120]
[381057703,1755978666904,-480.0,0.00054794,120]
[381057704,1755978666913,-158.032284,0.00054794,120]
[381057705,1755978666923,-1860.91,0.00054794,120]
[381057706,1755978666932,-480.0,0.00054794,2]
[381057707,1755978666941,-158.032291,0.00054794,120]
[381057708,1755978666950,-10740.59,0.00054794,120]
[381057709,1755978666960,-461.86164056,0.00054794,120]
[381057710,1755978666969,-2013.77,0.00054794,120]
[381057711,1755978666978,-446.19186528,0.00054794,120]
[381057712,1755978666987,-480.0,0.00054794,120]
[381057713,1755978666996,-554.85,0.00054794,120]
[381057714,1755978667005,-5870.87,0.00054794,120]
[381057715,1755978667015,-480.0,0.00054794,120]
[381057716,1755978667024,-480.0,0.00054794,120]
[381057717,1755978667033,-526.71543322,0.00054794,120]
[381057718,1755978667042,-480.0,0.00054794,120]
[381057719,1755978667051,-480.0,0.00054794,120]
[381057720,1755978667061,-526.527075,0.00054794,120]
[381057721,1755978667070,-526.527075,0.00054794,120]
[381057722,1755978667079,-480.0,0.00054794,120]
[381057723,1755978667089,-5733.81,0.00054794,3]
[381057724,1755978667099,-480.0,0.00054794,2]
[381057725,1755978667108,-526.527075,0.00054794,120]
[381057726,1755978667117,-526.527075,0.00054794,120]
[381057727,1755978667127,-480.0,0.00054794,120]
[381057728,1755978667137,-721.837882,0.00054794,120]
[381057729,1755978667147,-480.0,0.00054794,120]
[381057730,1755978667156,-721.837882,0.00054794,120]
[381057731,1755978667165,-526.527075,0.00054794,120]
[381057732,1755978667175,-526.527075,0.00054794,120]
[381057733,1755978667184,-480.0,0.00054794,120]
[381057734,1755978667193,-480.0,0.00054794,120]
[381057735,1755978667202,-1640.743855,0.00054794,120]
[381057736,1755978667211,-721.837882,0.00054794,120]
[381057737,1755978667220,-1640.743855,0.00054794,120]
[381057738,1755978667229,-721.837882,0.00054794,120]
[381057739,1755978667239,-480.0,0.00054794,120]
[381057740,1755978667249,-526.527075,0.00054794,120]
[381057741,1755978667257,-480.0,0.00054794,120]
[381057742,1755978667266,-526.527071,0.00054794,120]
[381057743,1755978667275,-1640.743855,0.00054794,120]
[381057744,1755978667284,-721.837882,0.00054794,120]
[381057745,1755978667293,-1640.743855,0.00054794,120]
[381057746,1755978667303,-721.837882,0.00054794,120]
[381057747,1755978667312,-480.0,0.00054794,30]
[381057748,1755978667322,-1640.743855,0.00054794,120]
[381057749,1755978667331,-1640.743855,0.00054794,120]
[381057750,1755978667340,-721.837882,0.00054794,120]
[381057751,1755978667350,-721.837888,0.00054794,120]
[381057752,1755978667360,-480.0,0.00054794,120]
[381057753,1755978667369,-1640.743855,0.00054794,120]
[381057754,1755978667379,-480.0,0.00054794,120]
[381057755,1755978667389,-1640.74385756,0.00054794,120]
[381057756,1755978667398,-480.0,0.00054794,120]
[381057757,1755978667407,-151.0,0.00054794,120]
[381057758,1755978667417,-151.0,0.00054794,120]
[381057759,1755978667427,-190.53758285,0.00054794,2]
[381057760,1755978667436,-480.0,0.00054794,120]
[381057761,1755978667446,-480.0,0.00054794,120]
[381057762,1755978667455,-151.0,0.00054794,120]
[381057763,1755978667464,-151.0,0.00054794,120]
[381057764,1755978667473,-1280.91,0.00054794,120]
[381057765,1755978667483,-151.0,0.00054794,120]
[381057766,1755978667492,-480.0,0.00054794,120]
[381057767,1755978667501,-164.628819,0.00054795,2]
[381057768,1755978667510,-391.4,0.000548,30]
[381057769,1755978667520,-325.52218839,0.00054877,120]
[381057770,1755978667529,-1002.0,0.00055,120]
[381057771,1755978667538,-4998.26542878,0.00055,120]
[381057772,1755978667547,-830.58688499,0.00055,120]
[381057773,1755978667557,-546.03879462,0.00055,120]
[381057774,1755978667566,-3899.36172498,0.00055,30]
[381057775,1755978667575,-325.52218839,0.00055059,120]
[381057776,1755978667585,-480.0,0.00055068,120]
[381057777,1755978667595,-480.0,0.00055068,120]
[381057778,1755978667604,-480.0,0.00055068,120]
[381057779,1755978667614,-480.0,0.00055068,120]
[381057780,1755978667624,-480.0,0.00055068,120]
[381057781,1755978667633,-340.08587881,0.00055068,120]
[381057782,1755978667642,-480.0,0.00055068,120]
[381057783,1755978667651,-480.0,0.00055068,120]
[381057784,1755978667661,-480.0,0.00055068,120]
[381057785,1755978667670,-480.0,0.00055068,120]
[381057786,1755978667682,-480.0,0.00055068,120]
[381057787,1755978667691,-480.0,0.00055068,120]
[381057788,1755978667701,-480.0,0.00055068,120]
[381057789,1755978667711,-402.13956481,0.00055068,120]
[381057790,1755978667722,-480.0,0.00055068,120]
[381057791,1755978667741,-480.0,0.00055068,120]
[381057792,1755978667760,-480.0,0.00055068,120]
[381057793,1755978667781,-411.18629182,0.00055068,120]
[381057794,1755978667802,-480.0,0.00055068,120]
[381057795,1755978667823,-516.80636787,0.00055068,120]
[381057796,1755978667833,-480.0,0.00055068,120]
[381057797,1755978667843,-480.0,0.00055068,120]
[381057798,1755978667852,-480.0,0.00055068,120]
[381057799,1755978667862,-480.0,0.00055068,120]
[381057800,1755978667871,-480.0,0.00055068,120]
[381057801,1755978667880,-480.0,0.00055068,120]
[381057802,1755978667890,-480.0,0.00055068,120]
[381057803,1755978667899,-480.0,0.00055068,120]
[381057804,1755978667908,-546.37,0.00055068,120]
[381057805,1755978667917,-481.13530276,0.00055068,120]
[381057806,1755978667927,-481.41077545,0.00055068,120]
[381057807,1755978667936,-480.0,0.00055068,120]
[381057808,1755978667945,-1095.5,0.00055068,120]
[381057809,1755978667954,-480.0,0.00055068,120]
[381057810,1755978667963,-480.0,0.00055068,120]
[381057811,1755978667973,-480.0,0.00055068,120]
[381057812,1755978667982,-480.0,0.00055068,120]
[381057813,1755978667991,-549.42,0.00055068,120]
[381057814,1755978668000,-480.0,0.00055068,120]
[381057815,1755978668010,-687.09,0.00055068,120]
[381057816,1755978668019,-480.0,0.00055068,120]
[381057817,1755978668027,-600.22,0.00055068,120]
[381057818,1755978668036,-480.0,0.00055068,120]
[381057819,1755978668045,-480.0,0.00055068,120]
[381057820,1755978668054,-480.0,0.00055068,120]
[381057821,1755978668063,-151.0,0.00055068,120]
[381057822,1755978668072,-480.0,0.00055068,120]
[381057823,1755978668081,-151.0,0.00055068,120]
[381057824,1755978668093,-151.0,0.00055068,120]
[381057825,1755978668106,-154.943269,0.00055068,120]
[381057826,1755978668120,-480.0,0.00055068,120]
[381057827,1755978668135,-258.78021444,0.00055068,120]
[381057828,1755978668155,-480.0,0.00055068,120]
[381057829,1755978668176,-480.0,0.00055068,7]
[381057830,1755978668197,-480.0,0.00055068,120]
[381057831,1755978668217,-480.0,0.00055068,120]
[381057832,1755978668238,-480.0,0.00055068,120]
[381057833,1755978668261,-431.5693994,0.00055068,120]
[381057834,1755978668283,-480.0,0.00055068,120]
[381057835,1755978668308,-480.0,0.00055068,120]
[381057836,1755978668331,-480.0,0.00055068,120]
[381057837,1755978668353,-463.29189966,0.00055068,120]
[381057838,1755978668373,-482.96718046,0.00055068,120]
[381057839,1755978668395,-480.0,0.00055068,120]
[381057840,1755978668416,-480.0,0.00055068,120]
[381057841,1755978668436,-480.0,0.00055068,120]
[381057842,1755978668554,-151.0,0.00055068,14]
[381057843,1755978668564,-151.0,0.00055068,14]
[381057844,1755978668574,-480.0,0.00055068,120]
[381057845,1755978668583,-151.0,0.00055068,14]
[381057846,1755978668593,-151.0,0.00055068,14]
[381057847,1755978668602,-480.0,0.00055068,120]
[381057848,1755978668611,-480.0,0.00055068,120]
[381057849,1755978668622,-480.0,0.00055068,120]
[381057850,1755978668631,-480.0,0.00055068,120]
[381057851,1755978668640,-151.0,0.00055068,120]
[381057852,1755978668650,-151.0,0.00055068,120]
[381057853,1755978668660,-235.844624,0.00055068,120]
[381057854,1755978668669,-480.0,0.00055068,120]
[381057855,1755978668679,-2057.34,0.00055068,120]
[381057856,1755978668690,-480.0,0.00055068,120]
[381057857,1755978668699,-480.0,0.00055068,120]
[381057858,1755978668709,-151.0,0.00055068,120]
[381057859,1755978668719,-151.0,0.00055068,120]
[381057860,1755978668728,-480.0,0.00055068,120]
[381057861,1755978668737,-151.0,0.00055068,120]
[381057862,1755978668747,-151.0,0.00055068,120]
[381057863,1755978668758,-1411.45,0.00055068,120]
[381057864,1755978668767,-480.0,0.00055068,120]
[381057865,1755978668777,-480.0,0.00055068,120]
[381057866,1755978668786,-151.0,0.00055068,120]
[381057867,1755978668795,-151.0,0.00055068,120]
[381057868,1755978668804,-160.821167,0.00055068,120]
[381057869,1755978668813,-242.60370036,0.00055068,120]
[381057870,1755978668822,-151.0,0.00055068,120]
[381057871,1755978668832,-151.0,0.00055068,120]
[381057872,1755978668842,-480.0,0.00055068,120]
[381057873,1755978668851,-638.36,0.00055068,120]
[381057874,1755978668860,-151.0,0.00055068,120]
[381057875,1755978668873,-151.0,0.00055068,120]
[381057876,1755978668884,-151.000002,0.00055068,120]
[381057877,1755978668894,-480.0,0.00055068,120]
[381057878,1755978668904,-480.0,0.00055068,120]
[381057879,1755978668915,-480.0,0.00055068,120]
[381057880,1755978668925,-480.0,0.00055068,120]
[381057881,1755978668935,-480.0,0.00055068,90]
[381057882,1755978668945,-480.0,0.00055068,120]
[381057883,1755978668953,-763.7,0.00055068,120]
[381057884,1755978668962,-480.0,0.00055068,120]
[381057885,1755978668972,-480.0,0.00055068,120]
[381057886,1755978668982,-481.54372366,0.00055068,120]
[381057887,1755978668991,-480.0,0.00055068,120]
[381057888,1755978669001,-480.85149213,0.00055068,120]
[381057889,1755978669010,-480.0,0.00055068,120]
[381057890,1755978669020,-480.0,0.00055068,120]
[381057891,1755978669029,-465.34265397,0.00055068,120]
[381057892,1755978669039,-466.72576641,0.00055068,120]
[381057893,1755978669048,-480.0,0.00055068,120]
[381057894,1755978669058,-480.0,0.00055068,120]
[381057895,1755978669068,-480.0,0.00055068,120]
[381057896,1755978669079,-480.0,0.00055068,120]
[381057897,1755978669088,-480.0,0.00055068,120]
[381057898,1755978669097,-427.69668547,0.00055068,120]
[381057899,1755978669106,-480.0,0.00055068,120]
[381057900,1755978669115,-480.0,0.00055068,120]
[381057901,1755978669124,-480.0,0.00055068,120]
[381057902,1755978669133,-480.0,0.00055068,120]
[381057903,1755978669142,-480.0,0.00055068,120]
[381057904,1755978669151,-424.11204411,0.00055068,120]
[381057905,1755978669161,-480.0,0.00055068,120]
[381057906,1755978669170,-480.0,0.00055068,120]
[381057907,1755978669179,-480.0,0.00055068,120]
[381057908,1755978669188,-1701.65,0.00055068,120]
[381057909,1755978669197,-480.0,0.00055068,120]
[381057910,1755978669206,-155.537382,0.00055068,120]
[381057911,1755978669215,-155.537382,0.00055068,120]
[381057912,1755978669225,-155.537382,0.00055068,120]
[381057913,1755978669234,-155.537382,0.00055068,120]
[381057914,1755978669243,-155.537382,0.00055068,120]
[381057915,1755978669252,-155.537382,0.00055068,120]
[381057916,1755978669261,-155.537382,0.00055068,120]
[381057917,1755978669270,-155.53739,0.00055068,120]
[381057918,1755978669280,-462.64825697,0.00055068,120]
[381057919,1755978669288,-480.0,0.00055068,120]
[381057920,1755978669298,-480.0,0.00055068,120]
[381057921,1755978669307,-151.0,0.00055068,120]
[381057922,1755978669316,-151.0,0.00055068,120]
[381057923,1755978669324,-151.0,0.00055068,120]
[381057924,1755978669333,-151.0,0.00055068,120]
[381057925,1755978669350,-480.0,0.00055068,20]
[381057926,1755978669370,-480.0,0.00055068,120]
[381057927,1755978669390,-480.0,0.00055068,120]
[381057928,1755978669408,-588.37390666,0.00055068,120]
[381057929,1755978669421,-151.0,0.00055068,120]
[381057930,1755978669438,-480.0,0.00055068,120]
[381057931,1755978669456,-151.0,0.00055068,120]
[381057932,1755978669472,-480.0,0.00055068,120]
[381057933,1755978669491,-480.0,0.00055068,120]
[381057934,1755978669507,-151.0,0.00055068,120]
[381057935,1755978669526,-2720.03,0.00055068,120]
[381057936,1755978669540,-152.387388,0.00055068,120]
[381057937,1755978669555,-480.0,0.00055068,120]
[381057938,1755978669570,-151.0,0.00055068,120]
[381057939,1755978669584,-480.0,0.00055068,120]
[381057940,1755978669598,-1334.36,0.00055068,120]
[381057941,1755978669613,-480.0,0.00055068,120]
[381057942,1755978669627,-482.5455094,0.00055068,120]
[381057943,1755978669642,-480.0,0.00055068,120]
[381057944,1755978669656,-480.0,0.00055068,120]
[381057945,1755978669670,-480.0,0.00055068,20]
[381057946,1755978669694,-783.05,0.00055068,120]
[381057947,1755978669715,-480.0,0.00055068,120]
[381057948,1755978669729,-480.0,0.00055068,120]
[381057949,1755978669745,-480.0,0.00055068,120]
[381057950,1755978669759,-480.0,0.00055068,120]
[381057951,1755978669774,-560.33,0.00055068,120]
[381057952,1755978669788,-480.0,0.00055068,120]
[381057953,1755978669802,-480.0,0.00055068,120]
[381057954,1755978669816,-480.0,0.00055068,120]
[381057955,1755978669830,-480.0,0.00055068,120]
[381057956,1755978669845,-480.0,0.00055068,120]
[381057957,1755978669859,-480.0,0.00055068,120]
[381057958,1755978669873,-483.21558934,0.00055068,120]
[381057959,1755978669888,-480.0,0.00055068,120]
[381057960,1755978669903,-446.31854841,0.00055068,120]
[381057961,1755978669917,-480.0,0.00055068,120]
[381057962,1755978669932,-480.0,0.00055068,120]
[381057963,1755978669947,-480.0,0.00055068,120]
[381057964,1755978669963,-745.46,0.00055068,120]
[381057965,1755978669979,-480.0,0.00055068,120]
[381057966,1755978669995,-480.0,0.00055068,120]
[381057967,1755978670009,-151.0,0.00055068,120]
[381057968,1755978670023,-151.0,0.00055068,120]
[381057969,1755978670038,-480.0,0.00055068,120]
[381057970,1755978670051,-333.24,0.00055068,120]
[381057971,1755978670064,-480.0,0.00055068,30]
[381057972,1755978670078,-151.0,0.00055068,120]
[381057973,1755978670093,-480.0,0.00055068,120]
[381057974,1755978670108,-506.38,0.00055068,120]
[381057975,1755978670122,-480.0,0.00055068,120]
[381057976,1755978670135,-7689.19,0.00055068,120]
[381057977,1755978670148,-480.0,0.00055068,2]
[381057978,1755978670163,-480.0,0.00055068,120]
[381057979,1755978670176,-480.0,0.00055068,120]
[381057980,1755978670189,-480.0,0.00055068,120]
[381057981,1755978670202,-480.0,0.00055068,120]
[381057982,1755978670216,-596.65,0.00055068,120]
[381057983,1755978670230,-480.0,0.00055068,120]
[381057984,1755978670243,-661.78,0.00055068,120]
[381057985,1755978670257,-480.0,0.00055068,120]
[381057986,1755978670270,-480.0,0.00055068,120]
[381057987,1755978670284,-480.0,0.00055068,120]
[381057988,1755978670299,-151.0,0.00055068,120]
[381057989,1755978670312,-480.0,0.00055068,120]
[381057990,1755978670327,-151.0,0.00055068,120]
[381057991,1755978670341,-480.0,0.00055068,120]
[381057992,1755978670355,-151.0,0.00055068,120]
[381057993,1755978670370,-608.69,0.00055068,120]
[381057994,1755978670384,-151.0,0.00055068,120]
[381057995,1755978670399,-480.0,0.00055068,120]
[381057996,1755978670413,-151.0,0.00055068,120]
[381057997,1755978670426,-151.0,0.00055068,120]
[381057998,1755978670452,-720.74,0.00055068,120]
[381057999,1755978670469,-151.0,0.00055068,120]
[381058000,1755978670484,-480.0,0.00055068,120]
[381058001,1755978670498,-200.727566,0.00055068,120]
[381058002,1755978670511,-480.0,0.00055068,120]
[381058003,1755978670527,-632.53,0.00055068,120]
[381058004,1755978670540,-153.181892,0.00055068,120]
[381058005,1755978670555,-951.58,0.00055068,120]
[381058006,1755978670568,-2089.97,0.00055068,120]
[381058007,1755978670728,-480.0,0.00055068,120]
[381058008,1755978670742,-480.0,0.00055068,120]
[381058009,1755978670752,-585.89,0.00055068,120]
[381058010,1755978670762,-480.0,0.00055068,120]
[381058011,1755978670772,-463.31281711,0.00055068,120]
[381058012,1755978670781,-480.0,0.00055068,120]
[381058013,1755978670791,-480.0,0.00055068,120]
[381058014,1755978670800,-480.0,0.00055068,120]
[381058015,1755978670810,-480.0,0.00055068,120]
[381058016,1755978670820,-480.0,0.00055068,120]
[381058017,1755978670829,-603.58491035,0.00055068,120]
[381058018,1755978670839,-480.0,0.00055068,7]
[381058019,1755978670849,-480.0,0.00055068,120]
[381058020,1755978670859,-955.97,0.00055068,120]
[381058021,1755978670868,-630.66,0.00055068,120]
[381058022,1755978670877,-151.0,0.00055068,120]
[381058023,1755978670887,-480.0,0.00055068,120]
[381058024,1755978670896,-480.0,0.00055068,120]
[381058025,1755978670905,-179.380025,0.00055068,120]
[381058026,1755978670915,-661.75,0.00055068,120]
[381058027,1755978670926,-480.0,0.00055068,120]
[381058028,1755978670935,-151.0,0.00055068,30]
[381058029,1755978670944,-664.62,0.00055068,120]
[381058030,1755978670953,-151.0,0.00055068,30]
[381058031,1755978670963,-480.0,0.00055068,120]
[381058032,1755978670972,-480.0,0.00055068,120]
[381058033,1755978670981,-480.0,0.00055068,120]
[381058034,1755978670990,-480.0,0.00055068,120]
[381058035,1755978671000,-540.78,0.00055068,120]
[381058036,1755978671009,-599.68,0.00055068,120]
[381058037,1755978671019,-1678.0,0.00055068,120]
[381058038,1755978671028,-643.31,0.00055068,120]
[381058039,1755978671038,-480.0,0.00055068,120]
[381058040,1755978671047,-480.0,0.00055068,120]
[381058041,1755978671057,-480.0,0.00055068,120]
[381058042,1755978671066,-480.0,0.00055068,120]
[381058043,1755978671076,-480.0,0.00055068,120]
[381058044,1755978671086,-2464.02,0.00055068,120]
[381058045,1755978671096,-862.31,0.00055068,120]
[381058046,1755978671107,-480.0,0.00055068,120]
[381058047,1755978671116,-197.801397,0.00055068,120]
[381058048,1755978671125,-197.801397,0.00055068,120]
[381058049,1755978671135,-489.50217287,0.00055068,120]
[381058050,1755978671145,-682.43,0.00055068,120]
[381058051,1755978671155,-197.801394,0.00055068,120]
[381058052,1755978671164,-759.12,0.00055068,120]
[381058053,1755978671173,-1521.63,0.00055068,120]
[381058054,1755978671183,-480.0,0.00055068,120]
[381058055,1755978671193,-463.79972665,0.00055068,120]
[381058056,1755978671202,-643.51,0.00055068,120]
[381058057,1755978671212,-480.0,0.00055068,120]
[381058058,1755978671222,-480.0,0.00055068,120]
[381058059,1755978671231,-555.85,0.00055068,120]
[381058060,1755978671241,-614.98,0.00055068,120]
[381058061,1755978671251,-480.0,0.00055068,120]
[381058062,1755978671260,-480.0,0.00055068,120]
[381058063,1755978671270,-754.53,0.00055068,120]
[381058064,1755978671279,-480.0,0.00055068,120]
[381058065,1755978671290,-480.0,0.00055068,120]
[381058066,1755978671301,-480.0,0.00055068,120]
[381058067,1755978671310,-5698.53,0.00055068,120]
[381058068,1755978671320,-392.05618471,0.00055068,120]
[381058069,1755978671329,-480.0,0.00055068,120]
[381058070,1755978671341,-480.0,0.00055068,120]
[381058071,1755978671351,-586.06,0.00055068,120]
[381058072,1755978671363,-480.0,0.00055068,120]
[381058073,1755978671372,-461.39972611,0.00055068,120]
[381058074,1755978671382,-1000.0,0.00055068,120]
[381058075,1755978671392,-480.0,0.00055068,120]
[381058076,1755978671402,-480.0,0.00055068,120]
[381058077,1755978671411,-480.0,0.00055068,120]
[381058078,1755978671422,-480.0,0.00055068,120]
[381058079,1755978671432,-1063.19,0.00055068,30]
[381058080,1755978671443,-480.0,0.00055068,120]
[381058081,1755978671454,-481.64249145,0.00055068,120]
[381058082,1755978671464,-480.0,0.00055068,120]
[381058083,1755978671475,-480.0,0.00055068,120]
[381058084,1755978671484,-480.0,0.00055068,120]
[381058085,1755978671494,-1221.27,0.00055068,120]
[381058086,1755978671504,-500.0,0.00055068,14]
[381058087,1755978671515,-480.70128005,0.00055068,120]
[381058088,1755978671525,-480.0,0.00055068,120]
[381058089,1755978671536,-480.0,0.00055068,120]
[381058090,1755978671545,-735.83,0.00055068,120]
[381058091,1755978671555,-480.0,0.00055068,120]
[381058092,1755978671565,-480.0,0.00055068,120]
[381058093,1755978671575,-480.0,0.00055068,120]
[381058094,1755978671586,-2721.4,0.00055068,120]
[381058095,1755978671596,-480.0,0.00055068,120]
[381058096,1755978671607,-480.0,0.00055068,120]
[381058097,1755978671617,-481.6828228,0.00055068,120]
[381058098,1755978671627,-480.0,0.00055068,120]
[381058099,1755978671637,-480.0,0.00055068,120]
[381058100,1755978671649,-874.34,0.00055068,120]
[381058101,1755978671659,-480.0,0.00055068,120]
[381058102,1755978671668,-480.0,0.00055068,120]
[381058103,1755978671680,-443.34921729,0.00055068,120]
[381058104,1755978671694,-480.0,0.00055068,120]
[381058105,1755978671703,-480.0,0.00055068,120]
[381058106,1755978671713,-1670.17,0.00055068,120]
[381058107,1755978671724,-627.3,0.00055068,120]
[381058108,1755978671735,-480.0,0.00055068,120]
[381058109,1755978671746,-480.0,0.00055068,120]
[381058110,1755978671758,-480.0,0.00055068,120]
[381058111,1755978671768,-480.0,0.00055068,120]
[381058112,1755978671779,-480.0,0.00055068,120]
[381058113,1755978671788,-480.0,0.00055068,120]
[381058114,1755978671797,-1127.06,0.00055068,120]
[381058115,1755978671807,-866.15,0.00055068,120]
[381058116,1755978671818,-785.53,0.00055068,120]
[381058117,1755978671828,-480.0,0.00055068,120]
[381058118,1755978671838,-480.0,0.00055068,120]
[381058119,1755978671847,-3353.87,0.00055068,120]
[381058120,1755978671858,-917.32,0.00055068,120]
[381058121,1755978671868,-480.0,0.00055068,120]
[381058122,1755978671878,-461.78956893,0.00055068,120]
[381058123,1755978671887,-480.0,0.00055068,120]
[381058124,1755978671899,-480.0,0.00055068,5]
[381058125,1755978671909,-178.31269913,0.00055068,120]
[381058126,1755978671920,-480.0,0.00055068,120]
[381058127,1755978671931,-482.98896377,0.00055068,120]
[381058128,1755978671940,-405.76020492,0.00055068,120]
[381058129,1755978671951,-480.0,0.00055068,120]
[381058130,1755978671962,-857.7,0.00055068,120]
[381058131,1755978671970,-480.0,0.00055068,120]
[381058132,1755978671979,-480.0,0.00055068,120]
[381058133,1755978671988,-350.7122928,0.00055068,120]
[381058134,1755978671997,-480.0,0.00055068,120]
[381058135,1755978672007,-480.0,0.00055068,120]
[381058136,1755978672016,-1224.09,0.00055068,120]
[381058137,1755978672025,-480.0,0.00055068,120]
[381058138,1755978672035,-803.68,0.00055068,120]
[381058139,1755978672045,-1279.53,0.00055068,120]
[381058140,1755978672055,-480.0,0.00055068,120]
[381058141,1755978672065,-3753.54,0.00055068,120]
[381058142,1755978672074,-2257.43,0.00055068,120]
[381058143,1755978672084,-445.44870505,0.00055068,120]
[381058144,1755978672094,-902.84,0.00055068,120]
[381058145,1755978672104,-3091.53,0.00055068,120]
[381058146,1755978672118,-633.83,0.00055068,120]
[381058147,1755978672128,-480.0,0.00055068,120]
[381058148,1755978672139,-480.0,0.00055068,120]
[381058149,1755978672149,-480.0,0.00055068,120]
[381058150,1755978672160,-480.0,0.00055068,120]
[381058151,1755978672174,-480.0,0.00055068,120]
[381058152,1755978672192,-2240.02,0.00055068,120]
[381058153,1755978672213,-1973.9,0.00055068,120]
[381058154,1755978672234,-480.0,0.00055068,120]
[381058155,1755978672245,-480.0,0.00055068,120]
[381058156,1755978672257,-480.0,0.00055068,120]
[381058157,1755978672267,-480.0,0.00055068,120]
[381058158,1755978672278,-480.0,0.00055068,120]
[381058159,1755978672288,-480.0,0.00055068,120]
[381058160,1755978672298,-480.0,0.00055068,120]
[381058161,1755978672308,-740.35,0.00055068,120]
[381058162,1755978672319,-480.0,0.00055068,120]
[381058163,1755978672330,-480.0,0.00055068,120]
[381058164,1755978672341,-480.0,0.00055068,120]
[381058165,1755978672352,-452.74724569,0.00055068,120]
[381058166,1755978672363,-1458.64,0.00055068,120]
[381058167,1755978672375,-575.85965149,0.00055068,120]
[381058168,1755978672384,-480.0,0.00055068,120]
[381058169,1755978672396,-480.0,0.00055068,120]
[381058170,1755978672407,-480.0,0.00055068,120]